Cogmind - Beta 10.2 *** ADVENTURER MODE // 2020.12.08 @ 21:29:00 Player: Nomiddlename303 Result: Self-destructed Performance ------------- Evolutions (6) 3000 Regions Visited (11) 2200 Robots Destroyed (97) 485 Value Destroyed (4120) 4120 Prototype IDs (12) 240 Alien Tech Used (0) 0 Bonus (740) 740 TOTAL SCORE: 10785 Bonus ------- High Alert Combat Kills 286 Follower Combat Kills 210 Met Imprinter 300 Friendly Fire -56 Cogmind --------- Core Integrity 695/1150 Matter 280/300 Energy 668/700 System Corruption 0% Temperature Cool (0) Movement Rolling (110) Ox2 Location -4/Upper Caves Parts ------- > --- POWER (1) -------- (None) > --- PROPULSION (4) --- Centrium Wheel Centrium Wheel > --- UTILITY (12) ----- Advanced Cooling System Large Storage Unit Large Storage Unit Large Storage Unit Improved Energy Well Experimental Optical Array Advanced Armor Integrity Analyzer > --- WEAPON (2) ------- Hardcell Cannon CR-A16's Behemoth Slayer > --- INVENTORY (22) --- Neutrino Core Antimatter Reactor Armored Medium Treads Armored Medium Treads Centrium Wheel Centrium Wheel Improved Cooling System Matter Compressor (250) Long-range Sensor Array Weapon Cycler Faulty Advanced Plasma Rifle Proton Cannon Disruptor Cannon Disruptor Cannon Disruptor Cannon Heavy Neutron Cannon Railgun Rocket Array Peak State ------------ > --- POWER ------------ Antimatter Reactor > --- PROPULSION ------- Heavy Treads Centrium Wheel Centrium Wheel > --- UTILITY ---------- Improved Cooling System Improved Cooling System Large Storage Unit Large Storage Unit Large Storage Unit Improved Energy Well Experimental Optical Array Long-range Sensor Array Improved Core Analyzer Advanced Armor Integrity Analyzer Weapon Cycler Improved Core Shielding > --- WEAPON ----------- Heavy Neutron Cannon Hardcell Cannon > --- INVENTORY -------- Neutrino Core Antimatter Reactor Armored Medium Treads Armored Medium Treads Centrium Wheel Centrium Wheel Improved Cooling System Matter Compressor Long-range Sensor Array Advanced Plasma Rifle Proton Cannon Disruptor Cannon Disruptor Cannon Disruptor Cannon Rocket Array CR-A16's Pointy Stick [Rating: 107] Favorites ----------- Power Improved Deuterium Engine Engine Improved Deuterium Engine Reactor Antimatter Reactor Propulsion Armored Wheel Treads Armored Treads Leg Aluminum Leg Wheel Armored Wheel Utility Large Storage Unit Device Improved Cooling System Storage Large Storage Unit Processor Advanced Targeting Computer Hackware Hacking Suite Protection Reactive Plating Weapon Plasma Cannon Energy Gun Improved Medium Laser Energy Cannon Plasma Cannon Ballistic Gun Assault Rifle Ballistic Cannon Hardcell Cannon Launcher Rocket Launcher Impact Weapon Flail Piercing Weapon CR-A16's Pointy Stick Build | -11 -10 -9 -9 -8 -7 -7 -6 -5 -5 -4 -4 ------- Run | Scr Mat Mat Min Mat Fac Low Zio Pro Fac Fac Upp Slots Evolved 12 | . . 2 . 2 2 . . . 4 2 . Power . | . . . . . . . . . . . . Propulsion 2 | . . 1 . . . . . . 1 . . Utility 10 | . . 1 . 2 2 . . . 3 2 . Weapon . | . . . . . . . . . . . . Parts Attached 156 | 6 9 11 2 14 26 2 3 3 37 40 3 Power 4 | 1 . 1 . . 1 . . . . 1 . Engine 3 | 1 . 1 . . 1 . . . . . . Core . | . . . . . . . . . . . . Reactor 1 | . . . . . . . . . . 1 . Propulsion 35 | 2 2 5 2 4 . . 2 . 9 9 . Treads 18 | . 2 2 2 2 . . 2 . 4 4 . Leg 2 | 2 . . . . . . . . . . . Wheel 15 | . . 3 . 2 . . . . 5 5 . Hover . | . . . . . . . . . . . . Flight . | . . . . . . . . . . . . Utility 76 | 1 6 2 . 4 11 2 1 3 24 21 1 Device 33 | . 2 . . 2 7 1 1 1 8 10 1 Storage 12 | 1 4 1 . . . . . . 5 1 . Processor 6 | . . . . . . . . . 3 3 . Hackware 3 | . . . . . . . . . 3 . . Protection 22 | . . 1 . 2 4 1 . 2 5 7 . Artifact . | . . . . . . . . . . . . Weapon 41 | 2 1 3 . 6 14 . . . 4 9 2 Energy Gun 1 | . . . . 1 . . . . . . . Energy Cannon 24 | . . . . 3 9 . . . 4 8 . Ballistic Gun 6 | 2 1 3 . . . . . . . . . Ballistic Cannon 2 | . . . . . . . . . . 1 1 Launcher 3 | . . . . . 3 . . . . . . Special Weapon . | . . . . . . . . . . . . Impact Weapon 4 | . . . . 2 2 . . . . . . Slashing Weapon . | . . . . . . . . . . . . Piercing Weapon 1 | . . . . . . . . . . . 1 Special Melee Weapon . | . . . . . . . . . . . . Unidentified Prototypes 5 | . . 1 . 1 1 . . . 1 1 . Parts Lost 17 | . . . . . . . . . . 10 7 Power 1 | . . . . . . . . . . . 1 Propulsion 1 | . . . . . . . . . . . 1 Utility 11 | . . . . . . . . . . 7 4 Weapon 4 | . . . . . . . . . . 3 1 Highest Loss Streak 8 | . . . . . . . . . . 8 7 Average Slot Usage (%) 98 | . 98 100 100 100 100 100 100 100 100 97 79 Engine 6 | . 14 11 11 9 7 7 7 7 5 1 . Treads 11 | . 15 33 19 9 7 7 7 7 11 9 4 Wheel 10 | . . . 13 17 15 15 15 15 11 10 10 Device 14 | . 2 . . 9 19 21 23 21 16 15 15 Storage 22 | . 24 27 33 27 23 23 23 23 17 21 21 Processor 5 | . . . . . . . . . 11 14 10 Protection 7 | . . 5 . 9 10 8 7 8 9 9 4 Energy Cannon 9 | . . . . 14 14 15 15 15 11 9 3 Ballistic Gun 4 | . 28 22 22 1 . . . . . . . Naked Turns . | . . . . . . . . . . . . Heaviest Build 115 | 10 39 62 62 76 93 89 89 90 95 115 100 Greatest Support 69 | 20 46 69 36 24 24 24 24 24 32 32 32 Greatest Overweight (x) 5 | . 1 1 5 5 3 3 3 3 3 4 3 Average Overweight (x) 2 | . . . 4 2 3 3 3 3 2 3 2 Largest Inventory Capacity 28 | 6 16 22 22 22 22 22 22 22 22 28 22 Average Capacity 20 | 5 12 18 22 22 22 22 22 22 22 22 22 Most Carried 22 | 6 15 22 22 22 22 22 22 22 22 22 18 Average Carried 19 | 3 12 17 21 21 21 22 21 22 21 20 16 Final Capacity 22 | 6 16 22 22 22 22 22 22 22 22 22 22 Final Carried 22 | 6 15 22 22 22 22 22 22 22 22 16 18 Class Distribution -------------------- 87% | Hauler-Mutant 11% | Mutant Dominant Class ---------------- Mutant | -10/Materials Hauler-Mutant | -9/Materials Hauler-Mutant | -9/Mines Hauler-Mutant | -8/Materials Hauler-Mutant | -7/Factory Hauler-Mutant | -7/Lower Caves Hauler-Mutant | -6/Zion Hauler-Mutant | -5/Proximity Caves Hauler-Mutant | -5/Factory Hauler-Mutant | -4/Factory Hauler-Mutant | -4/Upper Caves Resources | -11 -10 -9 -9 -8 -7 -7 -6 -5 -5 -4 -4 ----------- Run | Scr Mat Mat Min Mat Fac Low Zio Pro Fac Fac Upp Matter Collected 2544 | 276 87 380 233 120 292 30 30 30 357 689 20 Remotely . | . . . . . . . . . . . . Salvage Created 5171 | 78 87 380 284 332 593 158 . 118 846 2169 126 Parts 236 | 1 10 24 19 8 36 7 . 4 39 83 5 Haulers Intercepted 11 | . 1 3 . 2 3 . . . . 2 . Recyclers Shooed 10 | . 1 2 . . . . . . 2 5 . Parts Field Recycled . | . . . . . . . . . . . . Retrieved Matter . | . . . . . . . . . . . . Parts Self-Destructed 20 | . . . . . . 7 3 9 . . 1 Prevented . | . . . . . . . . . . . . Kills | -11 -10 -9 -9 -8 -7 -7 -6 -5 -5 -4 -4 ------- Run | Scr Mat Mat Min Mat Fac Low Zio Pro Fac Fac Upp Combat Hostiles Destroyed 70 | . 1 4 8 4 7 3 . 2 11 29 1 Melee 1 | . . . . . . . . . . . 1 Guns 13 | . 1 4 8 . . . . . . . . Cannons 51 | . . . . 4 5 2 . 2 11 27 . AOE 2 | . . . . . 2 . . . . . . Classes Destroyed 16 | 1 3 2 2 . 2 1 . . 3 1 1 Worker 4 | . 1 . . . 1 . . . 1 1 . Builder 1 | . . . . . . . . . 1 . . Tunneler 2 | . . . 1 . 1 . . . . . . Hauler 11 | . 1 3 . 2 3 . . . . 2 . Recycler 3 | 1 . . . . . . . . . 2 . Operator 2 | . . . . . 1 . . . 1 . . Watcher 4 | . . 1 . . 3 . . . . . . Swarmer 7 | . . . 3 . 4 . . . . . . Grunt 29 | . 1 1 5 3 . 2 . 2 1 14 . Brawler 3 | . . . . . . 1 . . 1 1 . Duelist 3 | . . . . . . . . . 1 2 . Protector 1 | . . . . . . . . . . 1 . Sentry 13 | . . 3 . 1 1 . . . 4 4 . Hunter 7 | . . . . . 2 . . . 3 2 . Programmer 6 | . . . . . . . . . 1 5 . Behemoth 1 | . . . . . . . . . . . 1 Best Kill Streak 10 | 1 1 2 3 2 7 3 . 1 3 10 1 Combat Bots Only 7 | . 1 1 3 2 4 3 . 1 3 7 1 Max Kills in Single Turn 2 | 1 1 1 1 1 2 1 . 1 2 2 1 Gunslinging . | . . . . . . . . . . . . Exploded 2 | . . . . . 2 . . . . . . Melee 1 | . . . . . . . . . . . 1 Uniques/NPCs Destroyed . | . . . . . . . . . . . . Combat | -11 -10 -9 -9 -8 -7 -7 -6 -5 -5 -4 -4 -------- Run | Scr Mat Mat Min Mat Fac Low Zio Pro Fac Fac Upp Damage Taken 5923 | . 154 93 210 139 171 28 . 119 624 3115 1270 Core 662 | . 35 12 34 11 . . . 20 95 197 258 Absorbed by Shields 394 | . . . . . 69 11 . 45 210 59 . Reduced by Siege Mode 104 | . . . . . . . . . . 104 . Core Remaining (%) 93 | 100 86 . 88 98 . . . 97 90 . . Volleys Fired 262 | 4 14 17 17 14 30 8 . 6 38 114 . Largest 2 | 2 2 2 2 2 2 2 . 2 2 2 . Hottest 220 | 40 40 46 46 136 160 160 . 160 188 220 . Shots Fired 470 | 8 28 32 34 28 54 16 . 12 68 190 . Gun 102 | 8 28 32 34 . . . . . . . . Cannon 366 | . . . . 28 52 16 . 12 68 190 . Launcher 2 | . . . . . 2 . . . . . . Special . | . . . . . . . . . . . . Kinetic 115 | 8 28 32 34 . . . . . . 13 . Thermal 312 | . . . . 28 32 16 . 12 63 161 . Explosive 2 | . . . . . 2 . . . . . . Electromagnetic 41 | . . . . . 20 . . . 5 16 . Robot Hit Streak 74 | 3 20 32 43 16 10 14 . 26 74 38 . Robot Miss Streak 2 | 1 1 . 1 1 2 1 . . 1 2 . Penetration Max . | . . . . . . . . . . . . Secondary Targets 1 | . . . 1 . . . . . . . . Max Gunslinging Chain 1 | . . . 1 . . . . . . . . Shots Hit Robots 384 | 6 25 28 30 22 37 14 . 12 54 141 15 Core Hits 185 | 2 6 14 12 9 22 5 . 5 30 76 4 Critical Hits 13 | 1 1 1 . 3 1 . . . . 6 . Critical Kills 9 | 1 1 1 . 1 . . . . . 5 . Critical Parts Destroyed 4 | . . . . 2 1 . . . . 1 . Melee Attacks 26 | . . . . 3 3 . . . . . 20 Impact 6 | . . . . 3 3 . . . . . . Slashing . | . . . . . . . . . . . . Piercing 20 | . . . . . . . . . . . 20 Sneak Attacks . | . . . . . . . . . . . . Combat Hostiles . | . . . . . . . . . . . . Follow-up Attacks . | . . . . . . . . . . . . Damage Inflicted 10794 | 54 308 399 471 430 1246 351 . 308 1758 4982 487 Guns 1232 | 54 308 399 471 . . . . . . . . Cannons 8885 | . . . . 430 1056 351 . 308 1758 4982 . Explosions 190 | . . . . . 190 . . . . . . Melee 487 | . . . . . . . . . . . 487 Ramming . | . . . . . . . . . . . . Kinetic 1626 | 54 308 399 471 . . . . . . 394 . Thermal 7589 | . . . . 430 527 351 . 308 1688 4285 . Explosive 190 | . . . . . 190 . . . . . . Electromagnetic 902 | . . . . . 529 . . . 70 303 . Impact . | . . . . . . . . . . . . Slashing . | . . . . . . . . . . . . Piercing 487 | . . . . . . . . . . . 487 Highest Corruption 2 | . . . . . . . . . 2 . . Average Corruption 1 | . . . . . . . . . 1 . . Corruption Purged . | . . . . . . . . . . . . Effects 4 | . . . . . . . . . 4 . . Message Errors 2 | . . . . . . . . . 2 . . Energy Discharges 1 | . . . . . . . . . 1 . . Targeting Errors 1 | . . . . . . . . . 1 . . Overload Shots . | . . . . . . . . . . . . Overflow Damage 125 | . . . . . 45 . . . 16 64 . Projectiles 125 | . . . . . 45 . . . 16 64 . Explosions . | . . . . . . . . . . . . Melee . | . . . . . . . . . . . . Knockbacks 3 | . . . . . . . . . . 3 . Impact . | . . . . . . . . . . . . Kinetic 3 | . . . . . . . . . . 3 . Secondary . | . . . . . . . . . . . . Self-Inflicted Damage . | . . . . . . . . . . . . Shots . | . . . . . . . . . . . . Rammed . | . . . . . . . . . . . . Targets Rammed . | . . . . . . . . . . . . Kicked . | . . . . . . . . . . . . Crushed . | . . . . . . . . . . . . Highest Temperature 272 | . 2 . . 8 272 234 . 39 120 144 . Average Temperature 42 | . 2 . . 4 81 120 . 21 29 27 . Received Heat Transfer 1201 | . 117 36 108 99 20 18 . 53 111 495 144 Effects 3 | . . . . . 3 . . . . . . Interference 3 | . . . . . 3 . . . . . . Siege Activations 2 | . . . . . . . . . . 2 . Total Turns 81 | . . . . . . . . . . 81 . Longest Duration 55 | . . . . . . . . . . 55 . Robots Corrupted . | . . . . . . . . . . . . Combat Hostiles . | . . . . . . . . . . . . Parts Fried 7 | . . . . . 6 . . . 1 . . Impact Corruptions . | . . . . . . . . . . . . Robots Melted 3 | . . . . . . 1 . . . 2 . Combat Hostiles 3 | . . . . . . 1 . . . 2 . Parts Melted 16 | . . . . 3 . 1 . 2 4 6 . Heat Transferred 9667 | . . . . 777 1050 700 . 600 2448 4092 . Parts Sabotaged . | . . . . . . . . . . . . Parts Stolen . | . . . . . . . . . . . . Parts Stripped . | . . . . . . . . . . . . Power Chain Reactions . | . . . . . . . . . . . . Missiles Intercepted . | . . . . . . . . . . . . Alert | -11 -10 -9 -9 -8 -7 -7 -6 -5 -5 -4 -4 ------- Run | Scr Mat Mat Min Mat Fac Low Zio Pro Fac Fac Upp Peak Influence 733 | 5 108 101 239 239 222 . . . 492 733 . Initial 177 | . 2 . 29 78 19 . . . 85 177 . Average 147 | 1 28 57 162 144 54 . . . 193 249 . Maximum Alert Level 3 | . . . 1 1 1 . . . 2 3 . Low Security (%) 77 | 100 100 100 92 75 95 . . . 60 61 . Level 1 11 | . . . 7 24 4 . . . 29 7 . Level 2 9 | . . . . . . . . . 10 26 . Level 3 1 | . . . . . . . . . . 4 . Level 4 . | . . . . . . . . . . . . Level 5 . | . . . . . . . . . . . . High Security . | . . . . . . . . . . . . Max Security . | . . . . . . . . . . . . Squads Dispatched 13 | . . 1 . . 1 . . . 4 7 . Investigation 3 | . . . . . . . . . 1 2 . Extermination 4 | . . . . . . . . . 1 3 . Reinforcement 3 | . . 1 . . 1 . . . 1 . . Assault 2 | . . . . . . . . . . 2 . Garrison 1 | . . . . . . . . . 1 . . Intercept . | . . . . . . . . . . . . Construction Impeded 1 | . . . . . 1 . . . . . . Haulers Reinforced . | . . . . . . . . . . . . Stealth | -11 -10 -9 -9 -8 -7 -7 -6 -5 -5 -4 -4 --------- Run | Scr Mat Mat Min Mat Fac Low Zio Pro Fac Fac Upp Distress Signals 5 | . 1 1 . . 1 . . . . 2 . Communications Jammed . | . . . . . . . . . . . . Distress Signals . | . . . . . . . . . . . . Times Spotted 96 | . 5 7 8 5 13 3 . 6 14 34 1 Peak Tracking Total 7 | . 3 2 3 3 5 3 . 3 3 7 1 Tactical Retreats 4 | . 2 . 1 . 1 . . . . . . Traps | -11 -10 -9 -9 -8 -7 -7 -6 -5 -5 -4 -4 ------- Run | Scr Mat Mat Min Mat Fac Low Zio Pro Fac Fac Upp Traps Triggered 5 | . . . . . . . . . 2 3 . Indirectly . | . . . . . . . . . . . . Trap Hack Attempts . | . . . . . . . . . . . . Triggered . | . . . . . . . . . . . . Disarmed . | . . . . . . . . . . . . Reprogrammed . | . . . . . . . . . . . . Reused . | . . . . . . . . . . . . Traps Extracted . | . . . . . . . . . . . . Installed . | . . . . . . . . . . . . Triggered 3 | . . . . . . 1 . . . 1 1 Machines | -11 -10 -9 -9 -8 -7 -7 -6 -5 -5 -4 -4 ---------- Run | Scr Mat Mat Min Mat Fac Low Zio Pro Fac Fac Upp Machines Disabled 1 | . . . . . 1 . . . . . . Max in Single Turn 1 | . . . . . 1 . . . . . . Garrison Access 3 | . . . . . 1 . . . 2 . . Machines Sabotaged . | . . . . . . . . . . . . Garrisons Compromised . | . . . . . . . . . . . . Overloaded Fab Kills . | . . . . . . . . . . . . Fab Network Shutdowns 2 | . . . . . . . . . 1 1 . Hacking | -11 -10 -9 -9 -8 -7 -7 -6 -5 -5 -4 -4 --------- Run | Scr Mat Mat Min Mat Fac Low Zio Pro Fac Fac Upp Machines Accessed 40 | . 6 5 . 5 6 . . . 12 6 . Terminals 22 | . 5 3 . 4 4 . . . 5 1 . Fabricators 3 | . . . . . . . . . 2 1 . Repair Stations 1 | . . . . . . . . . . 1 . Recycling Units 5 | . 1 . . . 1 . . . 1 2 . Scanalyzers 5 | . . 2 . 1 . . . . 1 1 . Garrison Access 4 | . . . . . 1 . . . 3 . . Total Hacks 128 | . 26 23 . 22 14 . . . 26 17 . Successful 85 | . 19 21 . 15 8 . . . 12 10 . Failed 43 | . 7 2 . 7 6 . . . 14 7 . Catastrophic 4 | . . . . . . . . . 3 1 . Database Lockouts . | . . . . . . . . . . . . Manual 51 | . 18 8 . 13 4 . . . 4 4 . Terminals 81 | . 25 12 . 18 11 . . . 12 3 . Fabricators 10 | . . . . . . . . . 6 4 . Repair Stations 1 | . . . . . . . . . . 1 . Recycling Units 6 | . 1 . . . 2 . . . 1 2 . Scanalyzers 24 | . . 11 . 4 . . . . 2 7 . Garrison Access 6 | . . . . . 1 . . . 5 . . Terminal Hacks 34 | . 12 6 . 7 5 . . . 3 1 . Part Schematic 3 | . . . . 2 . . . . 1 . . Robot Analysis 2 | . 2 . . . . . . . . . . Prototype ID Bank 3 | . . 2 . 1 . . . . . . . Branch Access Points 2 | . 1 . . . 1 . . . . . . Terminal Index 1 | . . . . . 1 . . . . . . Unreport Threat 3 | . . . . . 1 . . . 1 1 . Locate Traps 10 | . 4 2 . 2 1 . . . 1 . . Hauler Manifests 2 | . 1 . . 1 . . . . . . . Registered Prototypes 1 | . 1 . . . . . . . . . . Zone Layout 7 | . 3 2 . 1 1 . . . . . . Fabricator Hacks 6 | . . . . . . . . . 4 2 . Load Schematic 3 | . . . . . . . . . 2 1 . Build 3 | . . . . . . . . . 2 1 . Repair Station Hacks . | . . . . . . . . . . . . Recycling Unit Hacks 3 | . 1 . . . . . . . 1 1 . Retrieve Components 3 | . 1 . . . . . . . 1 1 . Scanalyzer 21 | . . 11 . 4 . . . . 1 5 . Insert Component 10 | . . 4 . 2 . . . . 1 3 . Analyze 11 | . . 7 . 2 . . . . . 2 . Garrison Access Hacks 3 | . . . . . 1 . . . 2 . . Seal Access 3 | . . . . . 1 . . . 2 . . Unauthorized Hacks 18 | . 6 4 . 4 2 . . . 1 1 . Terminals 16 | . 6 4 . 4 2 . . . . . . Track 10 | . 5 3 . 2 . . . . . . . Assimilate 2 | . . . . 1 1 . . . . . . Botnet 1 | . 1 . . . . . . . . . . Operators 3 | . . 1 . 1 1 . . . . . . Fabricators 2 | . . . . . . . . . 1 1 . Prioritize 2 | . . . . . . . . . 1 1 . Repair Stations . | . . . . . . . . . . . . Recycling Units . | . . . . . . . . . . . . Scanalyzers . | . . . . . . . . . . . . Garrison Access . | . . . . . . . . . . . . Data Cores Recovered 1 | . . . . . . . . . 1 . . Used . | . . . . . . . . . . . . Hacking Detections 33 | . 5 5 . 5 5 . . . 9 4 . Full Trace Events 1 | . . . . . . . . . 1 . . Feedback Events 1 | . . . . . . . . . 1 . . Corruption 1 | . . . . . . . . . 1 . . Feedback Blocked . | . . . . . . . . . . . . Robot Schematics Acquired . | . . . . . . . . . . . . Robots Built . | . . . . . . . . . . . . Matter . | . . . . . . . . . . . . Time . | . . . . . . . . . . . . Total Robot Build Rating . | . . . . . . . . . . . . Part Schematics Acquired 11 | . . 4 . 4 . . . . 1 2 . Parts Built 6 | . . . . . . . . . 4 2 . Matter 614 | . . . . . . . . . 380 234 . Time 270 | . . . . . . . . . 153 117 . Total Part Build Rating 34 | . . . . . . . . . 20 14 . Parts Repaired . | . . . . . . . . . . . . Time . | . . . . . . . . . . . . Parts Recycled . | . . . . . . . . . . . . Recycled Matter . | . . . . . . . . . . . . Retrieved Matter . | . . . . . . . . . . . . Retrieved Components 11 | . 1 . . . . . . . 7 3 . Parts Scanalyzed 10 | . . 4 . 2 . . . . 1 3 . Part Schematics Acquired 8 | . . 4 . 2 . . . . . 2 . Parts Damaged . | . . . . . . . . . . . . Bothacking | -11 -10 -9 -9 -8 -7 -7 -6 -5 -5 -4 -4 ------------ Run | Scr Mat Mat Min Mat Fac Low Zio Pro Fac Fac Upp Used RIF Installer . | . . . . . . . . . . . . Robots Hacked . | . . . . . . . . . . . . Non-combat . | . . . . . . . . . . . . Combat . | . . . . . . . . . . . . Robot Hacks Applied . | . . . . . . . . . . . . Relay Couplers Released 3 | . . . . . . . . . . 3 . Programmers 3 | . . . . . . . . . . 3 . Robots Rewired . | . . . . . . . . . . . . Allies Hacked . | . . . . . . . . . . . . Hacks Repelled . | . . . . . . . . . . . . Allies | -11 -10 -9 -9 -8 -7 -7 -6 -5 -5 -4 -4 -------- Run | Scr Mat Mat Min Mat Fac Low Zio Pro Fac Fac Upp Total Allies 5 | . . . . 1 1 . 3 . . . . Largest Group 4 | . . . . 1 1 1 4 4 4 . . Highest-Rated Group 110 | . . . . 10 26 26 110 110 110 . . Highest-Rated Ally 31 | . . . . 10 26 26 31 31 31 . . Total Orders . | . . . . . . . . . . . . Ally Attacks 26 | . . . . . . . . 17 9 . . Total Damage 531 | . . . . . . . . 366 165 . . Kills 5 | . . . . . . . . 4 1 . . Allies Corrupted . | . . . . . . . . . . . . Allies Melted . | . . . . . . . . . . . . Intel | -11 -10 -9 -9 -8 -7 -7 -6 -5 -5 -4 -4 ------- Run | Scr Mat Mat Min Mat Fac Low Zio Pro Fac Fac Upp Robot Analysis Total 2 | . 2 . . . . . . . . . . Derelict Logs Recovered 2 | . . . . . . . 2 . . . . Drone Launches . | . . . . . . . . . . . . Drone Recoveries . | . . . . . . . . . . . . Exploration | -11 -10 -9 -9 -8 -7 -7 -6 -5 -5 -4 -4 ------------- Run | Scr Mat Mat Min Mat Fac Low Zio Pro Fac Fac Upp Turns Passed 7602 | 124 450 732 239 527 855 163 1267 245 1107 1611 282 Spaces Moved 4546 | 88 244 354 130 266 462 111 1042 180 691 795 183 Core 10 | 10 . . . . . . . . . . . Treads 470 | . 117 353 . . . . . . . . . Legs 205 | 78 127 . . . . . . . . . . Wheels 3861 | . . 1 130 266 462 111 1042 180 691 795 183 Hover . | . . . . . . . . . . . . Flight . | . . . . . . . . . . . . Fastest Speed 50 | 50 120 100 100 110 120 120 120 120 110 110 100 Average Speed 125 | 112 147 159 136 116 120 120 120 120 119 124 117 Slowest Speed 160 | 120 160 160 140 140 120 120 120 120 120 130 120 Overloaded Moves . | . . . . . . . . . . . . Propulsion Burnouts . | . . . . . . . . . . . . Robots Hopped . | . . . . . . . . . . . . Cave-ins Triggered . | . . . . . . . . . . . . Exploration Rate (%) 30 | 5 37 41 29 23 12 21 86 38 22 18 31 Regions Visited 11 Branch Regions 5 Pre-discovered Areas . | . . . . . . . . . . . . Known Exits Taken 2 | . . . . . 1 . . . 1 . . Unknown Exits Taken 9 | 1 1 1 1 1 . 1 1 1 . 1 . Scrap Searched 8 | . . . 3 . . . 4 1 . . . Spaces Dug 38 | . . . . 2 2 . . . 8 26 . Terrain Destroyed 62 | . . . . 2 15 . . . 9 36 . Melee 4 | . . . . 2 2 . . . . . . Projectile 45 | . . . . . . . . . 9 36 . AOE 13 | . . . . . 13 . . . . . . Terrain Rammed . | . . . . . . . . . . . . Walls Destroyed . | . . . . . . . . . . . . Machines Disabled . | . . . . . . . . . . . . Actions | -11 -10 -9 -9 -8 -7 -7 -6 -5 -5 -4 -4 --------- Run | Scr Mat Mat Min Mat Fac Low Zio Pro Fac Fac Upp Total 5950 | 103 310 493 158 453 697 124 1058 195 903 1248 208 Wait 783 | . 14 73 8 131 159 4 8 7 99 280 . Move 4535 | 87 243 353 129 265 461 110 1041 179 690 794 183 Hop . | . . . . . . . . . . . . Pick Up 91 | 6 17 22 1 12 8 . 3 . 15 6 1 Fast Attach 24 | 6 2 1 . 2 2 . . . 1 8 2 Attach 24 | . . 2 . 2 2 . . . 7 11 . Detach 3 | . . . . . . . . . . 2 1 Swap 108 | . 7 8 2 10 22 2 3 3 29 21 1 Drop 94 | . 13 17 1 14 10 . 3 . 24 12 . Fire 262 | 4 14 17 17 14 30 8 . 6 38 114 . Melee 26 | . . . . 3 3 . . . . . 20 Ram . | . . . . . . . . . . . . Kick . | . . . . . . . . . . . . Crush . | . . . . . . . . . . . . Escape Stasis . | . . . . . . . . . . . . Rewire . | . . . . . . . . . . . . Trap . | . . . . . . . . . . . . Miscellaneous . | . . . . . . . . . . . . Route ------- -11/Scrapyard -10/Materials (discovered 2 exits: *Mat / Min) -9/Materials (discovered 2 exits: *Mat / [*Min]) -9/Mines -8/Materials -7/Factory (discovered 4 exits: Sto x2 / *Low x2) -7/Lower Caves -6/Zion -5/Proximity Caves -5/Factory (discovered 4 exits: *Fac x3 / [*Upp]) -4/Factory (discovered 2 exits: [*Res] / [*Upp]) -4/Upper Caves History --------- Turn | Location | Event 4 | -11/Scrapyard | Discovered new exit (range 15) 125 | -11/Scrapyard | Entered Materials 127 | -10/Materials | Identified exit to Mines 308 | -10/Materials | Build established: Mutant 560 | -10/Materials | Discovered new exit (range 10) 575 | -10/Materials | Entered another Materials area 575 | -9/Materials | Evolved 2 slots: Propulsion x1, Utility x1 851 | -9/Materials | Discovered new exit (range 3) 1224 | -9/Materials | Build established: Hauler-Mutant 1252 | -9/Materials | Discovered new exit (range 11) 1307 | -9/Materials | Entered Mines 1375 | -9/Mines | A weapon hastily lodged in a ceiling crevice suddenly fell to the ground 1528 | -9/Mines | Discovered new exit (range 6) 1546 | -9/Mines | Entered Materials 1546 | -8/Materials | Evolved 2 slots: Utility x2 2054 | -8/Materials | Discovered new exit (range 3) 2073 | -8/Materials | Entered Factory 2073 | -7/Factory | Accompanied by 1 ally 2073 | -7/Factory | Evolved 2 slots: Utility x2 2356 | -7/Factory | Identified exit to Storage 2356 | -7/Factory | Identified exit to Lower Caves 2753 | -7/Factory | Found Prototype Launcher 2753 | -7/Factory | Identified Rocket Array 2928 | -7/Factory | Entered Lower Caves 2928 | -7/Lower Caves | Accompanied by 1 ally 3080 | -7/Lower Caves | A Derelict revealed a hidden shortcut to a safe place 3091 | -7/Lower Caves | Entered Zion 3091 | -6/Zion | Accompanied by 1 ally 3143 | -6/Zion | Given A8's code to call for help 3165 | -6/Zion | Found CR-A16's Pointy Stick 3172 | -6/Zion | Discovered new exit (range 16) 3305 | -6/Zion | Gained Derelict followers 3454 | -6/Zion | Visited the Megawrench Repair Shop 3457 | -6/Zion | Megawrench repaired 11 parts 3559 | -6/Zion | Received a hallucinogenic algorithm 3761 | -6/Zion | Learned 12 Factory zone layouts 4358 | -6/Zion | Entered Proximity Caves 4358 | -5/Proximity Caves | Accompanied by 4 allies 4575 | -5/Proximity Caves | Discovered new exit (range 13) 4603 | -5/Proximity Caves | Entered Factory 4603 | -5/Factory | Accompanied by 4 allies 4603 | -5/Factory | Evolved 4 slots: Propulsion x1, Utility x3 4604 | -5/Factory | Identified exit to Factory 4688 | -5/Factory | Fabricated Arm. Treads? 4871 | -5/Factory | Garrison activated, responded to threat 5235 | -5/Factory | Discovered new exit (range 10) 5306 | -5/Factory | Local fabrication network quarantined 5317 | -5/Factory | Fabricated Centrium Wheel (x2) 5574 | -5/Factory | Discovered exit to Factory (range 15) 5710 | -5/Factory | Entered another Factory area 5710 | -4/Factory | Evolved 2 slots: Utility x2 6065 | -4/Factory | Discovered new exit (range 12) 6324 | -4/Factory | Fabricated Centrium Wheel (x2) 6693 | -4/Factory | Local fabrication network quarantined 6710 | -4/Factory | First assault squad dispatched 7003 | -4/Factory | Lost 8 parts (6u2w) 7057 | -4/Factory | Discovered new exit (range 8) 7157 | -4/Factory | Destroyed 7 combat bots 7321 | -4/Factory | Entered Upper Caves 7522 | -4/Upper Caves | Spotted B-86 Titan 7591 | -4/Upper Caves | Revealed the true nature of CR-A16's Pointy Stick 7591 | -4/Upper Caves | Destroyed B-86 Titan 7603 | -4/Upper Caves | Self-destructed Last Messages --------------- 07537_ Slug penetrates Wall. 07540_ Knocked back. 07543_ Penetrated by Slug. 07543_ Slug penetrates Wall. 07545_ B-86 Titan activates siege mode. 07556_ Imp. Cooling System destroyed. 07561_ B-86 Titan exits siege mode. 07566_ Penetrated by Slug. 07569_ Hvy. Treads destroyed. 07573_ Imp. Core Shielding destroyed. 07573_ Penetrated by Slug. 07576_ Slug penetrates Wall. 07589_ Penetrated by Slug. CR-A16's Pointy Stick's crusty surface crumbles away to reveal its sleek core, which rumbles to life. 07591_ B-86 Titan destroyed. 07595_ Hvy. Reflective Plating fries itself beyond repair. 07597_ Acquired Adv. Cooling System. 07600_ Acquired Hardcell Cannon. 07602_ Acquired Railgun. Map ----- +----------------------------------------------------+ | | | | | | | | | | | | | | | | | ?????????????????????????????????????????????????? | | ?????????????????????????????????????????????????? | | ?????????????????????????????????????????????????? | | ?????????????????????????????????????????????????? | | ?????????????????????????????????????????????????? | | ?????????????????????????????????????????????????? | | ?????????????????????????????????????????????????? | | ?????????????????????????????????????????????????? | | ?????????????????????????????????????????????????? | | ?????????????????????????????????????????????????? | | ?????????????????????????????????????????????????? | | ?????????????????????????????????????????????????? | | ?????????????????????????????????????????????????? | | ??????????????????????########???????????????????? | | ??????????????????????# #???????????????????? | | ????###??????????????## ! #???????????????????? | | ???## ##??####?#####?#; % #???????????????????? | | ???# #### ### ##; @ $##??????????????????? | | ???## # ### # #; #??????????????????? | | ????# # ### ;; #??????????????????? | | ?##### # ## ### ;;# ##?????????????????? | | ## #### ## #?????????????????? | | # #??# "# #; #????????????????? | | # # ###?#; # #### #????????????????? | | # #??#; ###???## #????????????????? | | # ###; # #??????##????????????????? | | ### ### #????????????????????????? | | # # ##?# ##?# #????????????????????????? | | # #### ??# #????????????????????????? | | #### ??# #????????????????????????? | | # #?# #?# ????????????????????????? | | ##### ? # ????????????????????????? | | # # # ## #?### ? ? ##???????????????????????? | | ## ### ##????###?##????????????????????????? | | ?#######?# #??????????????????????????????????? | | ?????????# ##????????????????????????????####### | | ????????## #????????????????????????????## | | ???????## #??###???????????????????????# | | ??????## # #### ##??????????############# | | ??????# # # #######????# | | ??????# # ## ##???# | | ??????#### ## # #???# ########### | +----------------------------------------------------+ Best States ------------- Heat Dissipation 97 Energy Generation 21 Energy Capacity 925 Matter Stores 300 Matter Capacity 300 Sight Range 23 Robot Scan Range 20 Terrain Scan Density 10 Armor Coverage 600 Resistance: KI 40 Resistance: TH 20 Resistance: EX 20 Resistance: EM 20 Resistance: I 20 Resistance: S 20 Resistance: P 20 Core Shielding 30 Weapon Shielding 66 Weapon Cycling 15 Evasion (%) 40 Targeting Accuracy 8 Core Analysis 8 Armor Integrity Analysis 66 Recoil Reduction 3 Particle Charging 20 Offensive Hacking 30 Item Schematics ----------------- Lrg. Storage Unit | -9/Materials | Scanalyzed Hrd. Light Armor Plating | -9/Materials | Scanalyzed Sensor Array | -9/Materials | Scanalyzed Cooling System | -9/Materials | Scanalyzed Arm. Wheel | -8/Materials | Scanalyzed Imp. Cooling System | -8/Materials | Scanalyzed Adv. Sensor Array | -8/Materials | Hacked Arm. Treads | -8/Materials | Hacked Centrium Wheel | -5/Factory | Hacked Disruptor Cannon | -4/Factory | Scanalyzed Hvy. Treads | -4/Factory | Scanalyzed Robot Schematics ------------------ None Fabricated ------------ Arm. Treads | x2 | -5/Factory Centrium Wheel | x2 | -5/Factory Centrium Wheel | x2 | -4/Factory Alien Tech Used ----------------- None Achievements -------------- None Challenges ------------ None Game ------ Seed FlakResetLaser Manual? 0 Play Time 01:35:08 Cumulative 133.5 hours Start 2020.12.08 @ 19:51:32 End 2020.12.08 @ 21:29:00 Sessions 1 Manual Loads 0 Difficulty Adventurer Special Mode None Game No. 96 Rogue 49 Adventurer 26 Explorer 21 Win Type - Total 7 Types 6/0/0/1/0/0/0/0/0 Lore% 76 Gallery% 70 Achievement% 61 Wizard Run 0 Options --------- ASCII 0 Keyboard 0 Movement Mouse Keybinds 0 Fullscreen 2 Font 12/Terminus Map View 83x54 Tactical HUD 1 Map Filters NONE Filters NONE Steam 1 RUN: 00edbad4-7f4a-403d-8fae-59d88e1a6495